bitfinex-derivatives/quotes_SOLF0:USTF0_20251119
["timestamp","ask_amount","ask_price","bid_price","bid_amount"]
[1763555446351,122.24652856,138.79,138.77,9.7404]
[1763555446552,122.24652856,138.79,138.75,3.29708514]
[1763555446847,5.25855739,138.78,138.75,3.29708514]
[1763555448346,5.25855739,138.78,138.76,3.25]
[1763555449037,5.25855739,138.79,138.76,3.25]
[1763555449242,5.25855739,138.79,138.77,3.25]
[1763555449850,5.25855739,138.79,138.76,9.7406]
[1763555450353,5.25855739,138.79,138.77,3.25]
[1763555452848,5.25855739,138.79,138.75,3.29708514]
[1763555453360,11.74805739,138.79,138.75,3.29708514]
[1763555453549,5.25855739,138.78,138.75,3.29708514]
[1763555453852,5.25855739,138.78,138.75,6.53838514]
[1763555454061,5.25855739,138.79,138.76,3.25]
[1763555454659,5.25855739,138.79,138.78,3.25]
[1763555454857,118.65446169,138.82,138.79,3.25]
[1763555455056,118.65446169,138.82,138.79,3.30539601]
[1763555455455,118.65446169,138.82,138.81,3.25]
[1763555455655,118.65446169,138.82,138.79,3.30539601]
[1763555456860,118.65446169,138.82,138.8,6.489]
[1763555457049,118.65446169,138.82,138.8,9.739]
[1763555458448,118.65446169,138.82,138.79,3.30539601]
[1763555459863,118.65446169,138.82,138.79,9.79479601]
[1763555460259,118.65446169,138.82,138.8,3.25]
[1763555461961,118.65446169,138.82,138.81,6.4885]
[1763555462964,118.65446169,138.82,138.81,9.7385]
[1763555464862,118.65446169,138.82,138.81,6.4885]
[1763555465062,118.65446169,138.82,138.81,9.7385]
[1763555466160,28.54802215,138.88,138.83,3.25]
[1763555466369,15.12,138.87,138.84,0.04620371]
[1763555466969,5.24106899,138.86,138.84,0.04620371]
[1763555467969,11.72746899,138.86,138.84,0.04620371]
[1763555468171,6.65055817,138.85,138.76,103.9762]
[1763555468370,15.12,138.84,138.76,103.9762]
[1763555468564,5.24106899,138.83,138.79,3.01]
[1763555469271,0.04620371,138.82,138.8,0.04536875]
[1763555469663,0.04620371,138.82,138.8,6.53436875]
[1763555470068,0.04620371,138.82,138.8,0.04536875]
[1763555472867,6.53430371,138.82,138.8,0.04536875]
[1763555473967,0.04620371,138.82,138.8,0.04536875]
[1763555474467,5.29461732,138.82,138.8,0.04536875]
[1763555474672,11.78271732,138.82,138.8,0.04536875]
[1763555474976,0.04620371,138.82,138.8,0.04536875]
[1763555475770,5.29581314,138.82,138.8,0.04536875]
[1763555475976,0.04620371,138.82,138.8,0.04536875]
[1763555476279,0.04620371,138.82,138.8,3.05536875]
[1763555476878,0.04620371,138.82,138.81,9.4985]
[1763555477777,0.04620371,138.82,138.8,0.04536875]
[1763555478566,0.04620371,138.82,138.8,3.05536875]
[1763555479180,0.04620371,138.82,138.8,9.54426875]
[1763555479874,0.04620371,138.82,138.81,3.01]
[1763555480981,0.04620371,138.82,138.81,9.4985]
[1763555489783,0.04620371,138.82,138.8,0.04536875]
[1763555490286,5.30138993,138.82,138.8,3.20536875]
[1763555491285,5.30138993,138.82,138.8,9.69436875]
[1763555491582,5.30138993,138.82,138.8,3.20536875]
[1763555491784,0.04620371,138.82,138.8,3.20536875]
[1763555492986,0.04620371,138.82,138.81,9.6485]
[1763555494086,5.25518622,138.83,138.82,9.6481]
[1763555494283,5.2922955,138.85,138.83,3.16]
[1763555494487,5.2922955,138.86,138.83,3.16]
[1763555494689,5.2922955,138.85,138.84,9.6471]
[1763555494888,5.2922955,138.86,138.85,3.16]
[1763555495084,5.2922955,138.88,138.85,3.16]
[1763555495286,5.2922955,138.87,138.85,3.21514542]
[1763555495486,5.2922955,138.88,138.85,3.21514542]
[1763555495883,5.2922955,138.87,138.85,0.05514542]
[1763555496088,5.2922955,138.86,138.85,0.05514542]
[1763555496390,11.94285367,138.86,138.85,0.05514542]
[1763555497095,5.2922955,138.86,138.85,0.05514542]
[1763555497988,5.2922955,138.87,138.85,0.05514542]
[1763555498291,11.94285367,138.86,138.85,0.05514542]
[1763555500698,5.2922955,138.86,138.85,0.05514542]
[1763555501189,5.2922955,138.86,138.77,6.20750848]
[1763555501393,6.74035087,138.84,138.77,3.16]
[1763555501590,5.2922955,138.83,138.77,3.16]
[1763555501791,5.2922955,138.82,138.79,9.6495]
[1763555501997,5.2922955,138.83,138.79,3.16]
[1763555502182,5.2922955,138.82,138.79,3.16]
[1763555502497,0.05450852,138.82,138.8,0.05163805]
[1763555502693,5.34680402,138.82,138.8,3.21163805]
[1763555502882,5.2922955,138.81,138.8,3.21163805]
[1763555503594,0.05450852,138.82,138.8,3.21163805]
[1763555503783,5.34680402,138.82,138.8,3.21163805]
[1763555503989,5.2922955,138.81,138.8,3.21163805]
[1763555504301,0.05450852,138.82,138.8,3.21163805]
[1763555504495,5.34680402,138.82,138.8,0.05163805]
[1763555504796,5.2922955,138.81,138.8,0.05163805]
[1763555506394,27.13264637,138.81,138.75,6.4913]
[1763555506599,5.2922955,138.8,138.75,6.4913]
[1763555506796,5.2922955,138.8,138.74,3.16]
[1763555506797,6.49,138.78,138.74,3.16]
[1763555507002,5.2922955,138.77,138.73,9.6519]
[1763555507200,6.74035087,138.79,138.73,9.6519]
[1763555507201,5.2922955,138.78,138.73,9.6519]
[1763555507503,0.04842117,138.76,138.74,0.05420288]
[1763555508303,5.34071667,138.76,138.74,0.05420288]
[1763555509799,11.83161667,138.76,138.74,0.05420288]
[1763555510101,5.24150995,138.75,138.74,0.05420288]
[1763555510404,6.492,138.74,138.67,3.16]
[1763555510595,20.34150995,138.75,138.67,3.16]
[1763555510596,5.24185229,138.73,138.67,3.16]
[1763555510798,11.98220316,138.74,138.67,3.16]
[1763555510997,5.24185229,138.73,138.67,3.16]
[1763555511302,6.4928,138.72,138.67,3.16]
[1763555511603,5.29367941,138.71,138.68,0.05433297]
[1763555512201,0.05182712,138.71,138.68,3.21433297]
[1763555512502,0.05182712,138.71,138.7,3.16]
[1763555512904,20.33084966,138.77,138.7,3.16]
[1763555513098,20.33084966,138.77,138.68,0.05433297]
[1763555513099,11.72174966,138.76,138.72,3.16]
[1763555513301,5.23084966,138.75,138.72,3.16]
[1763555513709,5.23084966,138.76,138.72,3.16]
[1763555513907,0.05495529,138.75,138.73,0.04936061]
[1763555514808,5.28580495,138.75,138.73,0.04936061]
[1763555515309,0.05495529,138.75,138.73,3.20936061]
[1763555516610,0.05495529,138.75,138.73,0.04936061]
[1763555516911,5.29702273,138.75,138.73,0.04936061]
[1763555518110,0.05495529,138.75,138.73,0.04936061]
[1763555519604,6.54635529,138.75,138.73,0.04936061]
[1763555520200,6.4924,138.73,138.69,3.16]
[1763555520405,20.3333717,138.72,138.65,3.16]
[1763555520705,5.23319813,138.71,138.65,9.6559]
[1763555521213,0.05542855,138.69,138.67,0.05383731]
[1763555523907,6.74035087,138.75,138.68,3.16]
[1763555524103,1.95483628,138.76,138.68,3.16]
[1763555524303,7.17676262,138.76,138.68,3.16]
[1763555524511,6.4913,138.75,138.71,9.653]
[1763555524706,6.4913,138.75,138.68,3.16]
[1763555525102,0.04578089,138.73,138.7,3.20645209]
[1763555525613,6.53798089,138.73,138.7,0.04645209]
[1763555525812,0.04578089,138.73,138.7,0.04645209]
[1763555526207,6.53808089,138.73,138.7,0.04645209]
[1763555527511,6.4928,138.72,138.7,0.04645209]
[1763555528113,8.44763628,138.72,138.7,0.04645209]
[1763555528612,6.4939,138.7,138.64,9.656]
[1763555528819,1.95483628,138.7,138.64,9.656]
[1763555529816,0.04837295,138.68,138.66,0.05162501]
[1763555530511,0.04837295,138.68,138.66,3.21162501]
[1763555531509,0.04837295,138.68,138.66,9.70702501]
[1763555531714,0.04837295,138.68,138.67,3.16]
[1763555532416,0.04837295,138.68,138.67,5.11483628]
[1763555538119,0.04837295,138.68,138.67,3.16]
[1763555540024,6.4926,138.73,138.69,3.16]
[1763555540222,208.75395002,138.76,138.7,3.16]
[1763555540223,122.90185002,138.76,138.7,3.16]
[1763555540432,5.21663263,138.75,138.7,3.16]
[1763555540720,107.78185002,138.76,138.71,3.16]
[1763555541115,0.0520433,138.75,138.72,3.20790071]
[1763555543122,5.27726872,138.75,138.72,3.20790071]
[1763555543827,11.76846872,138.75,138.72,3.20790071]
[1763555544125,6.5432433,138.75,138.72,3.20790071]
[1763555545930,6.5432433,138.75,138.72,0.04790071]
[1763555546225,5.23737492,138.74,138.72,0.04790071]
[1763555546715,5.28941822,138.75,138.72,0.04790071]
[1763555547928,6.4922,138.73,138.72,0.04790071]
[1763555548728,5.23737492,138.73,138.72,3.23790071]
[1763555548921,5.23737492,138.74,138.72,3.23790071]
[1763555549225,20.40941822,138.75,138.72,3.23790071]
[1763555549428,5.23737492,138.74,138.72,3.23790071]
[1763555549626,11.72907492,138.74,138.72,3.23790071]
[1763555549929,5.23737492,138.73,138.72,3.23790071]
[1763555550527,5.23737492,138.73,138.72,0.04790071]
[1763555551031,5.23737492,138.74,138.72,0.04790071]
[1763555551228,5.23737492,138.74,138.72,3.23790071]
[1763555555036,11.72917492,138.74,138.72,3.23790071]
[1763555555239,5.23737492,138.73,138.72,3.23790071]
[1763555556425,11.72957492,138.73,138.72,0.04790071]
[1763555557723,5.23737492,138.73,138.72,3.09790071]
[1763555557924,5.23737492,138.74,138.72,3.09790071]
[1763555558633,11.72907492,138.74,138.72,3.09790071]
[1763555558829,5.23737492,138.73,138.72,3.09790071]
[1763555559431,11.72957492,138.73,138.72,0.04790071]
[1763555559828,5.23737492,138.73,138.72,0.04790071]
[1763555560027,5.23737492,138.74,138.72,0.04790071]
[1763555560229,5.23737492,138.73,138.72,0.04790071]
[1763555561038,11.72957492,138.73,138.72,0.04790071]
[1763555564731,6.4934,138.71,138.67,5.00483628]
[1763555565040,5.23737492,138.7,138.68,3.05]
[1763555565334,5.23737492,138.71,138.68,3.05]
[1763555565533,11.73047492,138.71,138.68,3.05]
[1763555565740,5.23737492,138.7,138.68,3.1021476]
[1763555566337,0.04653097,138.71,138.68,3.1021476]
[1763555566338,5.28390589,138.71,138.68,3.1021476]
[1763555569442,5.28390589,138.71,138.68,9.5966476]
[1763555570137,5.28390589,138.71,138.69,3.05]
[1763555571158,5.28390589,138.71,138.64,3.05]
[1763555571337,5.23737492,138.7,138.64,3.05]
[1763555571539,5.23737492,138.69,138.64,3.05]
[1763555571738,5.23737492,138.68,138.64,3.05]
[1763555572238,5.23737492,138.68,138.64,9.5463]
[1763555572440,0.04611334,138.67,138.65,3.09711851]
[1763555576438,0.04611334,138.67,138.65,0.04711851]
[1763555576439,11.77868826,138.67,138.65,0.04711851]
[1763555576638,5.23737492,138.66,138.65,0.04711851]
[1763555577949,5.28348826,138.67,138.65,3.09711851]
[1763555580357,108.27352454,138.67,138.59,5.00483628]
[1763555580541,1.95483628,138.65,138.59,3.05]
[1763555580749,7.1922112,138.65,138.59,3.05]
[1763555580951,6.497,138.63,138.59,3.05]
[1763555581151,5.23737492,138.62,138.59,3.05]
[1763555581352,5.23737492,138.62,138.57,3.05]
[1763555581549,0.0466307,138.62,138.59,0.05432039]
[1763555582154,0.0466307,138.62,138.59,3.10432039]
[1763555582348,3.396e-05,138.63,138.61,3.05]
[1763555582548,2.55,138.7,138.6,103.03903628]
[1763555582549,9.29035087,138.72,138.68,3.05]
[1763555582744,2.55,138.72,138.68,3.05]
[1763555582945,2.55,138.72,138.69,1.95483628]
[1763555583154,2.55,138.72,138.67,1.95483628]
[1763555583347,2.59864922,138.71,138.68,0.04965494]
[1763555584752,2.55,138.7,138.68,0.04965494]
[1763555585349,9.0437,138.7,138.68,0.04965494]
[1763555585552,2.55,138.69,138.68,0.04965494]
[1763555588858,17.67,138.69,138.68,0.04965494]
[1763555589156,2.55,138.67,138.6,3.2]
[1763555590258,2.59878669,138.65,138.62,0.04879395]
[1763555590463,0.04878669,138.65,138.62,3.24879395]
[1763555591259,2.59878669,138.65,138.62,0.04879395]
[1763555592673,2.55,138.64,138.62,0.04879395]
[1763555593980,0.04878669,138.65,138.62,3.24879395]
[1763555595082,0.04878669,138.65,138.64,3.2]
[1763555603184,24.41035087,138.73,138.67,3.2]
[1763555603485,2.55,138.71,138.67,3.2]
[1763555603675,2.55,138.71,138.67,9.6948]
[1763555603876,7.70000575,138.72,138.68,3.14]
[1763555604184,2.58647122,138.71,138.69,0.04694479]
[1763555604887,0.04647122,138.71,138.69,3.18694479]
[1763555606089,2.54,138.7,138.69,0.04694479]
[1763555606298,6.53957122,138.71,138.69,0.04694479]
[1763555606299,9.07957122,138.71,138.69,0.04694479]
[1763555607788,2.54,138.7,138.69,0.04694479]
[1763555607984,6.53957122,138.71,138.69,0.04694479]
[1763555608185,9.07957122,138.71,138.69,0.04694479]
[1763555610390,2.54,138.7,138.69,0.04694479]
[1763555610792,9.0336,138.7,138.69,0.04694479]
[1763555615595,0.04647122,138.71,138.63,3.14]
[1763555615596,2.54,138.67,138.63,3.14]
[1763555616184,9.035,138.67,138.64,3.14]
[1763555616387,2.54,138.69,138.64,3.19063943]
[1763555616584,0.05399378,138.67,138.64,3.19063943]
[1763555617994,0.05399378,138.67,138.65,3.04]
[1763555620990,0.05399378,138.67,138.66,9.5354]
[1763555622094,24.1925,138.73,138.7,3.04]
[1763555622398,17.7,138.73,138.7,3.04]
[1763555623094,17.7527039,138.73,138.7,3.09148942]
[1763555624100,17.7527039,138.73,138.71,3.04]
[1763555624699,24.2449039,138.73,138.71,3.04]
[1763555625091,24.2449039,138.73,138.7,3.09148942]
[1763555626002,15.1727039,138.73,138.7,3.09148942]
[1763555626302,0.0527039,138.73,138.7,3.09148942]
[1763555626595,0.0527039,138.73,138.72,3.04]
[1763555629399,0.0527039,138.73,138.7,3.09148942]
[1763555631201,0.0527039,138.73,138.72,3.04]
[1763555639707,6.4893,138.8,138.73,3.04]
[1763555640608,6.4893,138.8,138.75,0.04846669]
[1763555640911,0.05257917,138.78,138.77,3.04]
[1763555644421,103.94500573,138.87,138.8,3.04]
[1763555644422,9.1164,138.86,138.8,3.04]
[1763555645108,2.63,138.85,138.77,3.04]
[1763555645309,0.05350813,138.82,138.8,3.08687106]
[1763555647222,0.05350813,138.82,138.81,3.04]
[1763555652405,0.05350813,138.82,138.8,6.53567106]
[1763555652621,2.65,138.81,138.8,0.04687106]
[1763555653119,2.65,138.81,138.74,9.7414]
[1763555653120,2.65,138.8,138.74,9.7414]
[1763555653320,100.9212,138.83,138.75,3.25]
[1763555653321,2.65,138.78,138.75,3.25]
[1763555654113,2.704425,138.78,138.75,3.30452767]
[1763555654732,2.704425,138.78,138.75,0.05452767]
[1763555654733,4.59988767,138.77,138.75,0.05452767]
[1763555654911,2.65,138.76,138.75,0.05452767]
[1763555655312,2.65,138.76,138.69,3.25]
[1763555655313,2.65,138.73,138.69,3.25]
[1763555656220,0.04680468,138.72,138.7,9.79490978]
[1763555657210,0.04680468,138.72,138.7,3.30140978]
[1763555658730,0.04680468,138.72,138.7,9.79470978]
[1763555659225,0.04680468,138.72,138.71,3.25]
[1763555659424,2.65,138.76,138.73,3.25]
[1763555659629,4.59988767,138.76,138.73,3.25]
[1763555660420,4.64934407,138.76,138.73,3.3027852]
[1763555663431,2.65,138.75,138.73,0.0527852]
[1763555663820,4.59988767,138.74,138.73,0.0527852]
[1763555664018,2.65,138.73,138.69,3.07]
[1763555665038,2.69539315,138.72,138.7,0.05386085]
[1763555673735,2.65,138.71,138.7,0.05386085]
[1763555673934,2.65,138.71,138.64,3.07]
[1763555674136,4.59988767,138.69,138.64,3.07]
[1763555674527,2.65,138.68,138.64,3.07]
[1763555674932,0.05242385,138.67,138.65,9.61725788]
[1763555675234,0.05242385,138.67,138.66,3.07]
[1763555681737,0.05242385,138.67,138.66,9.5654]
[1763555683542,2.65,138.72,138.69,9.6839]
[1763555683735,2.65,138.72,138.7,3.19]
[1763555684542,2.69850072,138.72,138.7,3.23577783]
[1763555684935,0.04850072,138.72,138.7,3.23577783]
[1763555685343,0.04850072,138.72,138.7,9.72917783]
[1763555685539,0.04850072,138.72,138.71,3.19]
[1763555690949,0.04850072,138.72,138.7,6.53927783]
[1763555691148,2.69850072,138.72,138.7,9.72927783]
[1763555691643,0.04850072,138.72,138.71,9.6831]
[1763555698953,0.04850072,138.72,138.7,3.23577783]
[1763555699163,2.69850072,138.72,138.7,3.23577783]
[1763555700357,2.69850072,138.72,138.7,0.04577783]
[1763555700863,0.04850072,138.72,138.7,3.23577783]
[1763555701563,2.69850072,138.72,138.7,3.23577783]
[1763555702164,2.69850072,138.72,138.7,0.04577783]
[1763555702969,9.1431,138.71,138.7,0.04577783]
[1763555703378,2.65,138.71,138.7,0.04577783]
[1763555704566,0.04850072,138.72,138.7,5.1856655]
[1763555704869,0.04850072,138.72,138.71,3.19]
[1763555708171,0.04850072,138.72,138.71,5.13988767]
[1763555708762,15.1,138.76,138.73,3.03]
[1763555709266,17.75,138.76,138.73,3.03]
[1763555709876,17.80214027,138.76,138.73,3.07771304]
[1763555710675,15.15214027,138.76,138.73,3.07771304]
[1763555711072,15.15214027,138.76,138.74,3.03]
[1763555711473,17.80214027,138.76,138.74,3.03]
[1763555711676,17.80214027,138.76,138.73,3.07771304]
[1763555713679,24.29294027,138.76,138.73,3.07771304]
[1763555714573,2.65,138.75,138.73,0.04771304]
[1763555718879,9.1413,138.75,138.73,0.04771304]
[1763555719179,2.65,138.74,138.73,0.04771304]
[1763555719683,9.1417,138.74,138.73,0.04771304]
[1763555722386,2.65,138.74,138.73,0.04771304]
[1763555724481,9.1417,138.74,138.73,0.04771304]
[1763555730184,2.65,138.74,138.73,0.04771304]
[1763555731083,0.05214027,138.76,138.73,3.15771304]
[1763555731782,0.05214027,138.76,138.74,3.11]
[1763555731982,2.70214027,138.76,138.74,3.11]
[1763555733288,2.70214027,138.76,138.73,3.15771304]
[1763555733985,2.70214027,138.76,138.73,9.64981304]
[1763555736285,2.65,138.75,138.73,0.04771304]
[1763555736785,2.65,138.72,138.68,3.11]
[1763555737681,0.04822076,138.71,138.69,0.05501137]
[1763555737887,2.67822076,138.71,138.69,0.05501137]
[1763555738481,0.04822076,138.71,138.69,3.29501137]
[1763555738685,0.04822076,138.71,138.7,3.24]
[1763555739293,0.04822076,138.71,138.7,9.7336]
[1763555740793,0.04822076,138.71,138.69,0.05501137]
[1763555740990,0.04822076,138.71,138.69,3.29501137]
[1763555741689,2.67822076,138.71,138.69,0.05501137]
[1763555742893,9.17142076,138.71,138.69,0.05501137]
[1763555743089,2.63,138.7,138.69,0.05501137]
[1763555744790,6.4942,138.69,138.64,3.24]
[1763555745092,2.63,138.68,138.62,3.24]
[1763555745496,2.63,138.65,138.62,3.24]
[1763555745897,2.68380188,138.65,138.62,3.28686511]
[1763555747087,0.05380188,138.65,138.62,3.28686511]
[1763555747888,0.05380188,138.65,138.63,3.24]
[1763555748894,0.05380188,138.65,138.62,6.54406511]
[1763555748895,2.68380188,138.65,138.62,6.54406511]
[1763555749094,2.68380188,138.65,138.62,9.78406511]
[1763555749685,2.68380188,138.65,138.62,3.28686511]
[1763555750698,2.68380188,138.65,138.62,0.04686511]
[1763555751900,2.63,138.64,138.62,0.04686511]
[1763555756800,2.63,138.64,138.62,3.28686511]
[1763555757004,0.05380188,138.65,138.62,3.28686511]
[1763555757406,2.68380188,138.65,138.62,3.28686511]
[1763555757901,0.05380188,138.65,138.62,9.78406511]
[1763555758104,0.05380188,138.65,138.63,3.24]
[1763555758905,0.05380188,138.65,138.63,9.7367]
[1763555759102,0.05380188,138.65,138.64,3.24]
[1763555764697,2.68380188,138.65,138.63,3.24]
[1763555764903,2.68380188,138.65,138.62,0.04686511]
[1763555765205,9.17970188,138.65,138.62,0.04686511]
[1763555765509,2.63,138.64,138.62,0.04686511]
[1763555765907,2.63,138.63,138.62,0.04686511]
[1763555767903,0.05380188,138.65,138.55,3.25]
[1763555767904,2.65,138.61,138.55,3.25]
[1763555768509,2.65,138.61,138.58,3.25]
[1763555768901,0.05093699,138.61,138.58,3.29547181]
[1763555769310,2.70093699,138.61,138.58,3.29547181]
[1763555770519,2.70093699,138.61,138.58,9.79457181]
[1763555770815,2.70093699,138.61,138.59,3.25]
[1763555771413,2.70093699,138.61,138.58,3.29547181]
[1763555776715,2.70093699,138.61,138.59,3.25]
[1763555776909,0.05093699,138.61,138.59,3.25]
[1763555777313,0.05093699,138.61,138.59,11.70494752]
[1763555777514,0.05093699,138.61,138.6,3.25]
[1763555777819,2.65,138.66,138.63,3.25]
[1763555778618,2.65,138.65,138.63,3.25]
[1763555778823,2.69847577,138.65,138.63,0.04815893]
[1763555779322,2.65,138.64,138.63,0.04815893]
[1763555780713,2.65,138.61,138.57,3.25]
[1763555781626,0.04836427,138.6,138.58,3.30198947]
[1763555782328,0.04836427,138.6,138.58,9.80108947]
[1763555782728,0.04836427,138.6,138.59,3.25]
[1763555784528,0.04836427,138.6,138.59,9.7487]
[1763555786414,2.64,138.65,138.62,3.19]
[1763555786621,2.64,138.65,138.58,103.10633699]
[1763555786622,2.64,138.65,138.59,3.19]
[1763555787020,9.1364,138.64,138.59,3.19]
[1763555787221,9.1364,138.64,138.6,3.19]
[1763555787420,0.05023379,138.63,138.61,0.05031034]
[1763555787625,0.05023379,138.63,138.61,3.24031034]
[1763555788730,2.69023379,138.63,138.61,3.24031034]
[1763555789728,2.69023379,138.63,138.61,0.05031034]
[1763555790922,9.1373,138.62,138.61,0.05031034]
[1763555792632,11.09374752,138.62,138.61,0.05031034]
[1763555792817,9.1382,138.61,138.57,9.6896]
[1763555793023,2.64,138.6,138.56,3.19]
[1763555793717,2.64,138.59,138.56,3.19]
[1763555793917,2.68616191,138.59,138.56,0.05226184]
[1763555794826,2.64,138.57,138.56,0.05226184]
[1763555795931,9.1396,138.57,138.56,0.05226184]
[1763555796333,2.64,138.56,138.52,3.19]
[1763555796528,2.64,138.55,138.52,3.19]
[1763555797032,2.64,138.54,138.51,9.692]
[1763555797229,2.69212892,138.54,138.51,9.73986436]
[1763555797635,2.69212892,138.54,138.52,3.06]
[1763555798133,0.05212892,138.54,138.52,3.06]
[1763555800235,0.05212892,138.54,138.52,9.5619]
[1763555800735,0.05212892,138.54,138.53,3.06]
[1763555802137,0.05212892,138.54,138.52,3.06]
[1763555802339,4.66857644,138.54,138.51,0.04786436]
[1763555802538,2.66,138.53,138.51,0.04786436]
[1763555803439,2.66,138.52,138.51,0.04786436]
[1763555811436,9.162,138.52,138.51,0.04786436]
[1763555811637,11.11844752,138.52,138.51,0.04786436]
[1763555812147,2.66,138.5,138.47,3.06]
[1763555812746,2.66,138.5,138.48,3.06]
[1763555813044,2.71046017,138.5,138.48,3.10851467]
[1763555813245,0.05046017,138.5,138.48,9.61241467]
[1763555813548,0.05046017,138.5,138.49,3.06]
[1763555813846,0.05046017,138.5,138.49,9.5634]
[1763555816741,2.66,138.55,138.52,9.5619]
[1763555817146,2.66,138.56,138.53,3.06]
[1763555817645,2.70749113,138.56,138.53,3.11403019]
[1763555817948,2.66,138.55,138.53,0.05403019]
[1763555818550,2.66,138.54,138.53,0.05403019]
[1763555820236,0.04749113,138.56,138.53,0.05403019]
[1763555820442,2.70749113,138.56,138.53,3.11403019]
[1763555820947,2.70749113,138.56,138.53,0.05403019]
[1763555821150,2.66,138.54,138.53,0.05403019]
[1763555822054,2.66,138.53,138.49,3.06]
[1763555822251,2.66,138.53,138.47,9.5639]
[1763555822548,2.66,138.52,138.49,3.06]
[1763555822951,2.71050349,138.52,138.49,3.10670009]
[1763555823150,2.66,138.51,138.49,0.04670009]
[1763555823543,2.66,138.5,138.49,0.04670009]
[1763555824945,2.66,138.47,138.42,3.06]
[1763555825148,2.66,138.49,138.42,3.06]
[1763555825545,2.66,138.48,138.43,3.06]
[1763555825853,0.04564447,138.47,138.44,3.11143628]
[1763555827849,0.04564447,138.47,138.45,6.5052]
[1763555828048,0.04564447,138.47,138.46,3.15]
[1763555829844,2.69564447,138.47,138.44,3.20143628]
[1763555831552,9.20004447,138.47,138.44,3.20143628]
[1763555831757,2.65,138.46,138.44,0.05143628]
[1763555832960,2.65,138.45,138.38,3.15]
[1763555833456,2.65,138.44,138.38,3.15]
[1763555834051,0.04785989,138.42,138.4,3.20229076]
[1763555834955,2.69785989,138.42,138.4,0.05229076]
[1763555835349,9.20455989,138.42,138.4,0.05229076]
[1763555835559,2.65,138.41,138.4,0.05229076]
[1763555835957,2.65,138.4,138.35,3.62156871]
[1763555836358,2.65,138.4,138.35,10.13126871]
[1763555836559,2.65,138.4,138.36,3.15]
[1763555836961,0.05498921,138.39,138.37,0.04696288]
[1763555837157,2.70498921,138.39,138.37,0.04696288]
[1763555838463,2.65,138.38,138.37,0.04696288]
[1763555839262,2.65,138.37,138.35,0.47156871]
[1763555839574,2.65,138.37,138.3,3.15]
[1763555839870,2.65,138.34,138.3,3.15]
[1763555840055,2.65,138.34,138.24,3.06271559]
[1763555840056,2.65,138.32,138.24,3.15]
[1763555840257,101.2718,138.35,138.24,3.15]
[1763555840258,0.05157883,138.29,138.27,0.05106356]
[1763555840460,0.04811148,138.29,138.27,0.05106356]
[1763555840666,0.04811148,138.29,138.27,3.20106356]
[1763555841261,0.04811148,138.29,138.27,0.05106356]
[1763555842470,0.04811148,138.29,138.27,3.20106356]
[1763555843668,0.04811148,138.29,138.27,0.05106356]
[1763555844064,2.70811148,138.29,138.27,0.05106356]
[1763555844553,0.04811148,138.29,138.27,0.05106356]
[1763555844965,0.04811148,138.29,138.27,3.10106356]
[1763555845175,2.70811148,138.29,138.27,0.05106356]
[1763555845366,2.66,138.27,138.21,3.05]
[1763555846367,2.71194751,138.25,138.23,0.05500037]
[1763555847673,2.71194751,138.25,138.19,3.05]
[1763555848175,0.05194751,138.25,138.21,3.05]
[1763555850072,0.05194751,138.25,138.22,3.05]
[1763555850269,2.66,138.24,138.2,3.05]
[1763555850665,2.66,138.24,138.2,9.5667]
[1763555850866,2.66,138.24,138.21,3.05]
[1763555851467,0.05194751,138.25,138.21,9.5664]
[1763555851665,0.05194751,138.25,138.22,3.05]
[1763555852170,0.05194751,138.25,138.22,9.5659]
[1763555852476,0.05194751,138.25,138.23,3.05]
[1763555852867,0.05194751,138.25,138.23,9.5655]
[1763555853065,0.05194751,138.25,138.24,3.05]
[1763555853267,0.05194751,138.25,138.23,9.5655]
[1763555853974,0.05194751,138.25,138.24,3.05]
[1763555859077,2.66,138.35,138.27,3.21]
[1763555859283,2.66,138.35,138.28,3.21]
[1763555859480,15.14,138.36,138.3,9.7222]
[1763555859481,9.1696,138.36,138.3,9.7222]
[1763555859671,2.66,138.35,138.3,3.21]
[1763555860075,2.71425059,138.34,138.31,0.04851469]
[1763555861677,2.66,138.33,138.31,0.04851469]